[Event "*** SCC Grand Prix: Titled Tuesday Blitz"]
[Site "Chess.com"]
[Date "2020.06.23"]
[Round "4"]
[White "AsaHoffmann"]
[Black "FMOlexandrProhorov"]
[Result "0-1"]
[WhiteElo "2315"]
[BlackElo "2110"]
[TimeControl "180+1"]
[EndTime "10:39:27 PDT"]
[Termination "FMOlexandrProhorov won by checkmate"]

1. d4 {[%clk 0:02:51.6]} 1... g6 {[%clk 0:02:46.1]} 2. e4 {[%clk 0:02:50.5]}
2... c6 {[%clk 0:02:45.3]} 3. Be3 {[%clk 0:02:48.8]} 3... Bg7 {[%clk 0:02:44.9]}
4. Qd2 {[%clk 0:02:48.1]} 4... d5 {[%clk 0:02:44.9]} 5. Nc3 {[%clk 0:02:47.5]}
5... dxe4 {[%clk 0:02:39]} 6. Nxe4 {[%clk 0:02:46.7]} 6... Nd7 {[%clk
0:02:38.6]} 7. Bc4 {[%clk 0:02:44.3]} 7... Ngf6 {[%clk 0:02:26.4]} 8. Ng3 {[%clk
0:02:33.5]} 8... O-O {[%clk 0:02:26]} 9. Nf3 {[%clk 0:02:32.6]} 9... b5 {[%clk
0:02:22.4]} 10. Bb3 {[%clk 0:02:31.7]} 10... Nb6 {[%clk 0:02:20.7]} 11. Bh6
{[%clk 0:02:29.5]} 11... Nbd5 {[%clk 0:02:16.8]} 12. O-O-O {[%clk 0:02:26.5]}
12... a5 {[%clk 0:02:14.8]} 13. Ne5 {[%clk 0:02:25.5]} 13... Qc7 {[%clk
0:02:14.3]} 14. a4 {[%clk 0:02:15.1]} 14... Rb8 {[%clk 0:01:55.1]} 15. h4 {[%clk
0:02:01.6]} 15... c5 {[%clk 0:01:36.1]} 16. Bxg7 {[%clk 0:01:55.2]} 16... Kxg7
{[%clk 0:01:35.7]} 17. dxc5 {[%clk 0:01:54.5]} 17... Qxe5 {[%clk 0:01:35.4]} 18.
Rhe1 {[%clk 0:01:48.8]} 18... Qf4 {[%clk 0:01:34.1]} 19. axb5 {[%clk 0:01:37.9]}
19... Be6 {[%clk 0:01:19.3]} 20. h5 {[%clk 0:01:35.7]} 20... Qxd2+ {[%clk
0:01:17]} 21. Rxd2 {[%clk 0:01:34.8]} 21... Rxb5 {[%clk 0:01:13.8]} 22. c6
{[%clk 0:01:30.2]} 22... Rc5 {[%clk 0:01:11.3]} 23. f4 {[%clk 0:01:28.2]} 23...
Rxc6 {[%clk 0:01:03.4]} 24. f5 {[%clk 0:01:27.2]} 24... gxf5 {[%clk 0:01:03.4]}
25. c3 {[%clk 0:01:23.3]} 25... Rb8 {[%clk 0:01:02.2]} 26. Bc2 {[%clk
0:01:21.9]} 26... f4 {[%clk 0:00:59.9]} 27. Nf5+ {[%clk 0:01:19.1]} 27... Bxf5
{[%clk 0:00:58.9]} 28. Bxf5 {[%clk 0:01:18.4]} 28... e6 {[%clk 0:00:58.9]} 29.
Bc2 {[%clk 0:01:12.6]} 29... Ng4 {[%clk 0:00:55.5]} 30. Rf1 {[%clk 0:01:05.4]}
30... Nge3 {[%clk 0:00:54.1]} 31. Rf3 {[%clk 0:01:04.3]} 31... Nc4 {[%clk
0:00:50.1]} 32. Rd4 {[%clk 0:01:02.3]} 32... Nxb2 {[%clk 0:00:49]} 33. h6+
{[%clk 0:00:58.9]} 33... Kf8 {[%clk 0:00:45.7]} 34. Bxh7 {[%clk 0:00:56.9]}
34... Nxc3 {[%clk 0:00:43.2]} 35. Kd2 {[%clk 0:00:54.2]} 35... Nb1+ {[%clk
0:00:29.7]} 36. Ke1 {[%clk 0:00:49]} 36... e5 {[%clk 0:00:28.7]} 37. Rd5 {[%clk
0:00:44.3]} 37... Rc1+ {[%clk 0:00:23.8]} 38. Kf2 {[%clk 0:00:43.2]} 38... a4
{[%clk 0:00:17]} 39. Rxe5 {[%clk 0:00:41.4]} 39... a3 {[%clk 0:00:17.3]} 40.
Rxf4 {[%clk 0:00:40.4]} 40... a2 {[%clk 0:00:16.6]} 41. Ref5 {[%clk 0:00:39.1]}
41... Nd3+ {[%clk 0:00:16.4]} 42. Kg3 {[%clk 0:00:36.7]} 42... Nxf4 {[%clk
0:00:16.5]} 43. Rxf4 {[%clk 0:00:33.9]} 43... a1=Q {[%clk 0:00:17.4]} 44. Be4
{[%clk 0:00:31.7]} 44... Qe5 {[%clk 0:00:15.7]} 45. h7 {[%clk 0:00:31]} 45...
Qg5+ {[%clk 0:00:15.7]} 46. Rg4 {[%clk 0:00:30.3]} 46... Rb3+ {[%clk 0:00:15.5]}
47. Kf2 {[%clk 0:00:29.3]} 47... Qd2# {[%clk 0:00:11.9]} 0-1

[Event "*** SCC Grand Prix: Titled Tuesday Blitz"]
[Site "Chess.com"]
[Date "2020.06.23"]
[Round "4"]
[White "Kezin_Roman"]
[Black "wonderfultime"]
[Result "1-0"]
[WhiteElo "2797"]
[BlackElo "2959"]
[TimeControl "180+1"]
[EndTime "10:39:28 PDT"]
[Termination "Kezin_Roman won on time"]

1. d4 {[%clk 0:03:00.9]} 1... d5 {[%clk 0:02:59.8]} 2. c4 {[%clk 0:03:01.3]}
2... c6 {[%clk 0:03:00.3]} 3. Nc3 {[%clk 0:03:01.1]} 3... Nf6 {[%clk 0:03:00.7]}
4. e3 {[%clk 0:03:01.4]} 4... a6 {[%clk 0:03:01.2]} 5. Qc2 {[%clk 0:02:51.8]}
5... e6 {[%clk 0:03:00.8]} 6. Nf3 {[%clk 0:02:50.3]} 6... c5 {[%clk 0:03:01.4]}
7. b3 {[%clk 0:02:32.5]} 7... Nc6 {[%clk 0:03:01]} 8. Bb2 {[%clk 0:02:32]} 8...
cxd4 {[%clk 0:02:53.3]} 9. exd4 {[%clk 0:02:32.9]} 9... Be7 {[%clk 0:02:42.2]}
10. Be2 {[%clk 0:02:22.4]} 10... O-O {[%clk 0:02:21.6]} 11. O-O {[%clk
0:02:21.6]} 11... dxc4 {[%clk 0:02:05.5]} 12. bxc4 {[%clk 0:02:22.5]} 12... Nxd4
{[%clk 0:01:58.2]} 13. Nxd4 {[%clk 0:02:23.4]} 13... Qxd4 {[%clk 0:01:59]} 14.
Nd5 {[%clk 0:01:30]} 14... Qc5 {[%clk 0:01:57.8]} 15. Nxe7+ {[%clk 0:01:30.2]}
15... Qxe7 {[%clk 0:01:57.7]} 16. Bf3 {[%clk 0:01:31.1]} 16... Qc7 {[%clk
0:01:19.6]} 17. Rfe1 {[%clk 0:01:24.6]} 17... Rd8 {[%clk 0:01:04.7]} 18. Be5
{[%clk 0:01:14.7]} 18... Qc5 {[%clk 0:00:54.8]} 19. Qb2 {[%clk 0:01:13.4]} 19...
Ne8 {[%clk 0:00:47.1]} 20. Rad1 {[%clk 0:01:13.6]} 20... Rxd1 {[%clk 0:00:25.8]}
21. Rxd1 {[%clk 0:01:14.5]} 21... Qxc4 {[%clk 0:00:26.3]} 22. Rd8 {[%clk
0:00:51.9]} 22... Qa4 {[%clk 0:00:25.5]} 23. Bxg7 {[%clk 0:00:43.6]} 23... Qb5
{[%clk 0:00:08.5]} 24. Qxb5 {[%clk 0:00:35]} 24... axb5 {[%clk 0:00:09.4]} 25.
Bh6 {[%clk 0:00:35.8]} 25... f5 {[%clk 0:00:09.9]} 26. Rxe8+ {[%clk 0:00:35.2]}
26... Kf7 {[%clk 0:00:10.3]} 27. Bh5+ {[%clk 0:00:28.9]} 27... Kf6 {[%clk
0:00:10.1]} 28. f4 {[%clk 0:00:29.8]} 28... b6 {[%clk 0:00:04.6]} 29. Bg5+
{[%clk 0:00:27.7]} 29... Kg7 {[%clk 0:00:05.1]} 30. Re7+ {[%clk 0:00:26.4]}
30... Kg8 {[%clk 0:00:05.1]} 31. Re8+ {[%clk 0:00:21.5]} 31... Kg7 {[%clk
0:00:05.2]} 32. Bf3 {[%clk 0:00:21.6]} 32... Rb8 {[%clk 0:00:02.5]} 33. Bh4
{[%clk 0:00:19.8]} 33... Kf7 {[%clk 0:00:01.6]} 34. Rd8 {[%clk 0:00:19.9]} 34...
b4 {[%clk 0:00:02.1]} 35. Be1 {[%clk 0:00:19.5]} 1-0

[Event "*** SCC Grand Prix: Titled Tuesday Blitz"]
[Site "Chess.com"]
[Date "2020.06.23"]
[Round "4"]
[White "Resignify"]
[Black "Unknown_IM"]
[Result "0-1"]
[WhiteElo "2143"]
[BlackElo "2387"]
[TimeControl "180+1"]
[EndTime "10:39:28 PDT"]
[Termination "Unknown_IM won on time"]

1. Nf3 {[%clk 0:03:00.9]} 1... Nf6 {[%clk 0:02:59.5]} 2. g3 {[%clk 0:03:01.2]}
2... d5 {[%clk 0:02:59.4]} 3. Bg2 {[%clk 0:03:01.3]} 3... c5 {[%clk 0:02:59.5]}
4. d3 {[%clk 0:03:01.6]} 4... Nc6 {[%clk 0:02:59.8]} 5. Nbd2 {[%clk 0:03:01.3]}
5... Bf5 {[%clk 0:03:00]} 6. O-O {[%clk 0:03:00.8]} 6... e6 {[%clk 0:02:59.4]}
7. Qe1 {[%clk 0:03:01]} 7... Be7 {[%clk 0:02:54.6]} 8. e4 {[%clk 0:03:00.7]}
8... Bg6 {[%clk 0:02:54.3]} 9. c3 {[%clk 0:02:56.2]} 9... O-O {[%clk 0:02:53.4]}
10. Qe2 {[%clk 0:02:56]} 10... dxe4 {[%clk 0:02:52.3]} 11. dxe4 {[%clk
0:02:55.4]} 11... Nd7 {[%clk 0:02:50.9]} 12. Nc4 {[%clk 0:02:47.7]} 12... b5
{[%clk 0:02:45.4]} 13. Na3 {[%clk 0:02:45.4]} 13... a6 {[%clk 0:02:44.6]} 14.
Rd1 {[%clk 0:02:36.6]} 14... Qc7 {[%clk 0:02:40]} 15. Bf4 {[%clk 0:02:34.4]}
15... Qb7 {[%clk 0:02:39.4]} 16. h4 {[%clk 0:02:22.9]} 16... h6 {[%clk
0:02:36.1]} 17. Rd2 {[%clk 0:02:07.7]} 17... Rfd8 {[%clk 0:02:27.3]} 18. Rad1
{[%clk 0:02:06.2]} 18... Nb6 {[%clk 0:02:21.5]} 19. Rxd8+ {[%clk 0:01:46.8]}
19... Rxd8 {[%clk 0:02:22.4]} 20. Rxd8+ {[%clk 0:01:46.6]} 20... Bxd8 {[%clk
0:02:15.9]} 21. Bd6 {[%clk 0:01:35.2]} 21... Be7 {[%clk 0:02:08.1]} 22. Bxe7
{[%clk 0:01:20]} 22... Qxe7 {[%clk 0:02:09]} 23. Nd2 {[%clk 0:01:10.6]} 23... e5
{[%clk 0:02:03]} 24. Bh3 {[%clk 0:01:01.8]} 24... Qd6 {[%clk 0:01:48.3]} 25. Nc2
{[%clk 0:00:55.5]} 25... Na4 {[%clk 0:01:35.3]} 26. Ne3 {[%clk 0:00:18.8]} 26...
Nxb2 {[%clk 0:01:24.8]} 27. Nd5 {[%clk 0:00:18.7]} 27... Ne7 {[%clk 0:01:08.1]}
28. Nxe7+ {[%clk 0:00:13.4]} 28... Qxe7 {[%clk 0:01:08.3]} 29. Nb3 {[%clk
0:00:12.6]} 29... Nc4 {[%clk 0:01:06.2]} 30. Qd3 {[%clk 0:00:10.4]} 30... Qd6
{[%clk 0:00:34.3]} 31. Qxd6 {[%clk 0:00:09.7]} 31... Nxd6 {[%clk 0:00:35.2]} 32.
Nxc5 {[%clk 0:00:10]} 32... Nxe4 {[%clk 0:00:35.5]} 33. Nxa6 {[%clk 0:00:08.4]}
33... Nxc3 {[%clk 0:00:35.2]} 34. Nc7 {[%clk 0:00:07]} 34... Bd3 {[%clk
0:00:33.4]} 35. Bf1 {[%clk 0:00:05.1]} 35... Bxf1 {[%clk 0:00:29.6]} 36. Kxf1
{[%clk 0:00:05]} 36... b4 {[%clk 0:00:29.9]} 37. Nd5 {[%clk 0:00:01.2]} 37...
Nxd5 {[%clk 0:00:29.2]} 0-1

[Event "*** SCC Grand Prix: Titled Tuesday Blitz"]
[Site "Chess.com"]
[Date "2020.06.23"]
[Round "4"]
[White "Rodalquilar"]
[Black "realmadridtv"]
[Result "0-1"]
[WhiteElo "2629"]
[BlackElo "2463"]
[TimeControl "180+1"]
[EndTime "10:39:30 PDT"]
[Termination "realmadridtv won by checkmate"]

1. d4 {[%clk 0:03:00.9]} 1... Nf6 {[%clk 0:02:59.1]} 2. c4 {[%clk 0:03:00.8]}
2... g6 {[%clk 0:02:59.1]} 3. Nc3 {[%clk 0:03:00.9]} 3... d5 {[%clk 0:02:58.9]}
4. cxd5 {[%clk 0:03:00.9]} 4... Nxd5 {[%clk 0:02:59.8]} 5. Bd2 {[%clk
0:03:01.1]} 5... Bg7 {[%clk 0:02:58.8]} 6. e4 {[%clk 0:03:01.5]} 6... Nxc3
{[%clk 0:02:58.8]} 7. Bxc3 {[%clk 0:03:02.4]} 7... O-O {[%clk 0:02:55.4]} 8. Qd2
{[%clk 0:03:02.2]} 8... c5 {[%clk 0:02:54.7]} 9. d5 {[%clk 0:03:02.5]} 9... Bxc3
{[%clk 0:02:54.8]} 10. bxc3 {[%clk 0:03:03.4]} 10... e6 {[%clk 0:02:55.1]} 11.
d6 {[%clk 0:03:01.5]} 11... Nc6 {[%clk 0:02:53.2]} 12. h4 {[%clk 0:03:00.5]}
12... f5 {[%clk 0:02:52.3]} 13. Nf3 {[%clk 0:02:33.6]} 13... Qf6 {[%clk
0:02:48.7]} 14. Bb5 {[%clk 0:01:59.2]} 14... Bd7 {[%clk 0:02:45]} 15. Bxc6
{[%clk 0:01:51]} 15... Bxc6 {[%clk 0:02:41.8]} 16. e5 {[%clk 0:01:51.5]} 16...
Qg7 {[%clk 0:02:38]} 17. Qf4 {[%clk 0:01:51.3]} 17... Bxf3 {[%clk 0:02:16.6]}
18. gxf3 {[%clk 0:01:50.4]} 18... h5 {[%clk 0:02:16.8]} 19. Rg1 {[%clk
0:01:47.8]} 19... Kh7 {[%clk 0:02:16.7]} 20. O-O-O {[%clk 0:01:40.4]} 20... Qd7
{[%clk 0:02:15.1]} 21. Rxg6 {[%clk 0:01:11.5]} 21... Kxg6 {[%clk 0:02:14]} 22.
Rg1+ {[%clk 0:01:11]} 22... Kh7 {[%clk 0:01:57.9]} 23. Qg5 {[%clk 0:01:10.7]}
23... Qf7 {[%clk 0:01:56.5]} 24. Rd1 {[%clk 0:00:24.4]} 24... Rg8 {[%clk
0:01:45.1]} 25. Qe3 {[%clk 0:00:24.5]} 25... b6 {[%clk 0:01:44.3]} 26. f4 {[%clk
0:00:14.8]} 26... Rad8 {[%clk 0:01:42.5]} 27. Qf3 {[%clk 0:00:12.4]} 27... Rd7
{[%clk 0:01:41]} 28. Qc6 {[%clk 0:00:10.1]} 28... Qg7 {[%clk 0:01:34]} 29. f3
{[%clk 0:00:08.7]} 29... Rgd8 {[%clk 0:01:32]} 30. Kb2 {[%clk 0:00:07.1]} 30...
Qg3 {[%clk 0:01:29.2]} 31. Qb5 {[%clk 0:00:06.1]} 31... Qxf4 {[%clk 0:01:25.5]}
32. Qe2 {[%clk 0:00:06.7]} 32... Rg8 {[%clk 0:01:20.2]} 33. Qb5 {[%clk
0:00:06.8]} 33... Rgg7 {[%clk 0:01:09.9]} 34. Qe2 {[%clk 0:00:06.2]} 34... Qg3
{[%clk 0:01:00.4]} 35. Kb3 {[%clk 0:00:04.5]} 35... b5 {[%clk 0:00:54]} 36. a4
{[%clk 0:00:03.5]} 36... bxa4+ {[%clk 0:00:46.9]} 37. Kxa4 {[%clk 0:00:03.4]}
37... Qf4+ {[%clk 0:00:45.3]} 38. Kb5 {[%clk 0:00:03.7]} 38... Rb7+ {[%clk
0:00:44.3]} 39. Kc6 {[%clk 0:00:04.3]} 39... Qa4+ {[%clk 0:00:40.9]} 40. Kxc5
{[%clk 0:00:04.1]} 40... Rgc7+ {[%clk 0:00:32.2]} 41. dxc7 {[%clk 0:00:04.1]}
41... Rxc7+ {[%clk 0:00:33.1]} 42. Kd6 {[%clk 0:00:04.5]} 42... Qc6# {[%clk
0:00:33.5]} 0-1

[Event "*** SCC Grand Prix: Titled Tuesday Blitz"]
[Site "Chess.com"]
[Date "2020.06.23"]
[Round "4"]
[White "Anuar_Is"]
[Black "OhanyanEminChess"]
[Result "1-0"]
[WhiteElo "2843"]
[BlackElo "2526"]
[TimeControl "180+1"]
[EndTime "10:39:33 PDT"]
[Termination "Anuar_Is won by resignation"]

1. e4 {[%clk 0:03:00.9]} 1... e5 {[%clk 0:02:59.6]} 2. Nf3 {[%clk 0:03:01.1]}
2... Nc6 {[%clk 0:02:57.8]} 3. Bb5 {[%clk 0:03:01.4]} 3... f5 {[%clk 0:02:57.2]}
4. d3 {[%clk 0:02:59.3]} 4... fxe4 {[%clk 0:02:56.7]} 5. dxe4 {[%clk 0:03:00.2]}
5... Nf6 {[%clk 0:02:56.3]} 6. Qd3 {[%clk 0:03:00.1]} 6... Bc5 {[%clk
0:02:56.1]} 7. Nc3 {[%clk 0:02:59]} 7... d6 {[%clk 0:02:55.8]} 8. Bg5 {[%clk
0:02:52.9]} 8... O-O {[%clk 0:02:55.2]} 9. O-O-O {[%clk 0:02:51]} 9... Bxf2
{[%clk 0:02:15.5]} 10. Bxc6 {[%clk 0:02:46.7]} 10... bxc6 {[%clk 0:02:15.3]} 11.
Rhf1 {[%clk 0:02:39.9]} 11... Bb6 {[%clk 0:02:08.5]} 12. Qc4+ {[%clk 0:02:40]}
12... Kh8 {[%clk 0:02:07.9]} 13. Nxe5 {[%clk 0:02:39.2]} 13... Qe8 {[%clk
0:02:07.4]} 14. Bxf6 {[%clk 0:02:31.3]} 14... gxf6 {[%clk 0:01:39.7]} 15. Nxc6
{[%clk 0:02:23.3]} 15... Be6 {[%clk 0:01:37.8]} 16. Nd5 {[%clk 0:02:22]} 16...
Qh5 {[%clk 0:01:20.6]} 17. Qc3 {[%clk 0:02:14.7]} 17... Qg5+ {[%clk 0:01:17.9]}
18. Kb1 {[%clk 0:02:13.7]} 18... Kg7 {[%clk 0:01:00.6]} 19. a4 {[%clk
0:02:07.2]} 19... a5 {[%clk 0:00:54]} 20. g3 {[%clk 0:02:01.2]} 20... Rac8
{[%clk 0:00:46.2]} 21. Nce7 {[%clk 0:01:59.6]} 21... Rce8 {[%clk 0:00:45.8]} 22.
Nf5+ {[%clk 0:01:57.3]} 22... Kg8 {[%clk 0:00:34.7]} 23. Nxb6 {[%clk 0:01:50.1]}
23... cxb6 {[%clk 0:00:35.6]} 24. Nxd6 {[%clk 0:01:50.2]} 24... Rd8 {[%clk
0:00:35.2]} 25. Nb5 {[%clk 0:01:37.8]} 25... Rxd1+ {[%clk 0:00:22]} 26. Rxd1
{[%clk 0:01:38.7]} 26... f5 {[%clk 0:00:21.6]} 27. Qe5 {[%clk 0:01:35.2]} 27...
Bf7 {[%clk 0:00:20.1]} 28. Rf1 {[%clk 0:01:28.1]} 28... Qg4 {[%clk 0:00:16.3]}
29. Qxf5 {[%clk 0:01:23.1]} 29... Ba2+ {[%clk 0:00:12.5]} 30. Kxa2 {[%clk
0:01:22.9]} 30... Rxf5 {[%clk 0:00:13.4]} 31. Rxf5 {[%clk 0:01:22.8]} 31... Qxe4
{[%clk 0:00:14.1]} 32. Rf4 {[%clk 0:01:06.2]} 32... Qxc2 {[%clk 0:00:14.1]} 33.
h4 {[%clk 0:01:05.6]} 33... h5 {[%clk 0:00:13.6]} 34. Nc3 {[%clk 0:01:03.4]}
34... Qg2 {[%clk 0:00:11.2]} 35. Rf5 {[%clk 0:01:03.7]} 35... Qc6 {[%clk
0:00:05.2]} 36. Rxh5 {[%clk 0:01:03.3]} 36... Qc4+ {[%clk 0:00:04.8]} 37. Ka1
{[%clk 0:00:58.1]} 37... Qf1+ {[%clk 0:00:04.6]} 38. Nb1 {[%clk 0:00:56.8]}
38... Qc4 {[%clk 0:00:03.6]} 39. Rg5+ {[%clk 0:00:57.1]} 39... Kh7 {[%clk
0:00:03.7]} 40. Nc3 {[%clk 0:00:57.7]} 40... Qf1+ {[%clk 0:00:03.5]} 41. Ka2
{[%clk 0:00:57.4]} 41... Qc4+ {[%clk 0:00:04.4]} 42. Kb1 {[%clk 0:00:57]} 42...
Qd3+ {[%clk 0:00:03.7]} 43. Kc1 {[%clk 0:00:56.7]} 43... Qe3+ {[%clk 0:00:03]}
44. Kc2 {[%clk 0:00:57.1]} 44... Qf2+ {[%clk 0:00:03.1]} 45. Kb3 {[%clk
0:00:56.8]} 45... Qf7+ {[%clk 0:00:02.8]} 46. Rd5 {[%clk 0:00:55.6]} 46... Qf3
{[%clk 0:00:02]} 47. Ka2 {[%clk 0:00:51.2]} 47... Qxg3 {[%clk 0:00:01.9]} 48.
Rh5+ {[%clk 0:00:51.2]} 48... Kg6 {[%clk 0:00:02.6]} 49. Rg5+ {[%clk 0:00:52.1]}
49... Qxg5 {[%clk 0:00:03.3]} 50. hxg5 {[%clk 0:00:53]} 50... Kxg5 {[%clk
0:00:04.2]} 51. Nd5 {[%clk 0:00:52.8]} 51... b5 {[%clk 0:00:03.8]} 52. axb5
{[%clk 0:00:52.8]} 1-0

[Event "*** SCC Grand Prix: Titled Tuesday Blitz"]
[Site "Chess.com"]
[Date "2020.06.23"]
[Round "4"]
[White "amintabatabaei"]
[Black "dey2580"]
[Result "1-0"]
[WhiteElo "2811"]
[BlackElo "2547"]
[TimeControl "180+1"]
[EndTime "10:39:35 PDT"]
[Termination "amintabatabaei won by resignation"]

1. e4 {[%clk 0:03:00.9]} 1... d5 {[%clk 0:03:00.1]} 2. exd5 {[%clk 0:03:00.4]}
2... Qxd5 {[%clk 0:03:01]} 3. Nc3 {[%clk 0:03:00.2]} 3... Qd6 {[%clk 0:03:01.8]}
4. d4 {[%clk 0:02:59.9]} 4... Nf6 {[%clk 0:03:02.3]} 5. Nf3 {[%clk 0:02:53.6]}
5... a6 {[%clk 0:03:02.9]} 6. g3 {[%clk 0:02:52.9]} 6... Bg4 {[%clk 0:03:03.5]}
7. h3 {[%clk 0:02:42.3]} 7... Bh5 {[%clk 0:03:03.3]} 8. Bg2 {[%clk 0:02:36.6]}
8... Nc6 {[%clk 0:03:03.8]} 9. d5 {[%clk 0:02:35.5]} 9... Nb4 {[%clk 0:02:09.7]}
10. Bf4 {[%clk 0:01:55.1]} 10... Bxf3 {[%clk 0:01:10.9]} 11. Qxf3 {[%clk
0:01:43.3]} 11... e5 {[%clk 0:01:08]} 12. dxe6 {[%clk 0:01:15.7]} 12... Qxe6+
{[%clk 0:01:07.9]} 13. Kf1 {[%clk 0:01:16]} 13... Be7 {[%clk 0:00:48.4]} 14. Re1
{[%clk 0:01:03]} 14... Qd7 {[%clk 0:00:35.5]} 15. Qxb7 {[%clk 0:00:57.2]} 15...
O-O {[%clk 0:00:35.3]} 16. Qxc7 {[%clk 0:00:57.8]} 16... Ra7 {[%clk 0:00:19.8]}
17. Qxd7 {[%clk 0:00:53.6]} 17... Rxd7 {[%clk 0:00:20.7]} 18. Re2 {[%clk
0:00:47.6]} 18... Bc5 {[%clk 0:00:19.8]} 19. a3 {[%clk 0:00:40.8]} 19... Nbd5
{[%clk 0:00:20]} 20. Nxd5 {[%clk 0:00:41.5]} 20... Nxd5 {[%clk 0:00:20.2]} 21.
Bd2 {[%clk 0:00:42.3]} 21... Bd4 {[%clk 0:00:20]} 22. c3 {[%clk 0:00:41.8]}
22... Bf6 {[%clk 0:00:20.2]} 23. Bf3 {[%clk 0:00:42]} 23... Nb6 {[%clk
0:00:20.5]} 24. Kg2 {[%clk 0:00:38.5]} 24... h6 {[%clk 0:00:20.6]} 25. b3 {[%clk
0:00:32.4]} 25... g5 {[%clk 0:00:20.1]} 26. c4 {[%clk 0:00:32.1]} 26... Rd3
{[%clk 0:00:20.4]} 27. c5 {[%clk 0:00:29.8]} 27... Nd7 {[%clk 0:00:19.7]} 28. c6
{[%clk 0:00:30.1]} 28... Ne5 {[%clk 0:00:20.2]} 29. Be4 {[%clk 0:00:26.2]} 29...
Rxb3 {[%clk 0:00:20.5]} 30. Bb4 {[%clk 0:00:26.3]} 30... Rc8 {[%clk 0:00:20.6]}
31. Rc1 {[%clk 0:00:26.3]} 31... a5 {[%clk 0:00:20.4]} 32. Bd6 {[%clk
0:00:19.7]} 32... Nd3 {[%clk 0:00:20.4]} 33. Rcc2 {[%clk 0:00:16.4]} 33... Kg7
{[%clk 0:00:19.4]} 34. Bf5 {[%clk 0:00:15.2]} 34... Rd8 {[%clk 0:00:18.1]} 35.
c7 {[%clk 0:00:15.7]} 35... Rxd6 {[%clk 0:00:17.4]} 36. c8=Q {[%clk 0:00:16.3]}
36... Ne5 {[%clk 0:00:16.9]} 37. Qc5 {[%clk 0:00:13]} 37... Rd1 {[%clk
0:00:15.6]} 38. Rxe5 {[%clk 0:00:12.3]} 38... Rbb1 {[%clk 0:00:16]} 39. Re8
{[%clk 0:00:09.5]} 39... Rg1+ {[%clk 0:00:16.2]} 40. Kf3 {[%clk 0:00:10.2]}
40... Rb3+ {[%clk 0:00:16.5]} 41. Ke2 {[%clk 0:00:10.3]} 41... Bd4 {[%clk
0:00:16.6]} 42. Qxd4+ {[%clk 0:00:10.1]} 1-0

[Event "*** SCC Grand Prix: Titled Tuesday Blitz"]
[Site "Chess.com"]
[Date "2020.06.23"]
[Round "4"]
[White "verdest"]
[Black "Raja3401"]
[Result "0-1"]
[WhiteElo "2546"]
[BlackElo "2798"]
[TimeControl "180+1"]
[EndTime "10:39:36 PDT"]
[Termination "Raja3401 won on time"]

1. d4 {[%clk 0:03:00.9]} 1... Nf6 {[%clk 0:02:58.5]} 2. c4 {[%clk 0:03:00.4]}
2... e6 {[%clk 0:02:58.7]} 3. Nf3 {[%clk 0:03:00.2]} 3... d5 {[%clk 0:02:56.9]}
4. Nc3 {[%clk 0:02:58.8]} 4... c6 {[%clk 0:02:52.1]} 5. Qc2 {[%clk 0:02:48]}
5... dxc4 {[%clk 0:02:44.8]} 6. e4 {[%clk 0:02:34.7]} 6... b5 {[%clk 0:02:41.2]}
7. a4 {[%clk 0:02:31.7]} 7... a6 {[%clk 0:02:27.6]} 8. axb5 {[%clk 0:02:24.8]}
8... cxb5 {[%clk 0:02:28.5]} 9. Nxb5 {[%clk 0:01:44.9]} 9... axb5 {[%clk
0:02:29.4]} 10. Rxa8 {[%clk 0:01:44.5]} 10... Bb7 {[%clk 0:02:24.8]} 11. Ra1
{[%clk 0:01:04.9]} 11... Bxe4 {[%clk 0:02:15.6]} 12. Qd1 {[%clk 0:01:03]} 12...
Nc6 {[%clk 0:02:13.3]} 13. Be2 {[%clk 0:00:59.7]} 13... Bb4+ {[%clk 0:02:03]}
14. Bd2 {[%clk 0:00:58.8]} 14... O-O {[%clk 0:02:01.4]} 15. O-O {[%clk
0:00:56.4]} 15... Bxd2 {[%clk 0:01:55.6]} 16. Qxd2 {[%clk 0:00:55.9]} 16... Bxf3
{[%clk 0:01:55]} 17. Bxf3 {[%clk 0:00:55.2]} 17... Nxd4 {[%clk 0:01:55.8]} 18.
Qc3 {[%clk 0:00:41.6]} 18... b4 {[%clk 0:01:43.7]} 19. Qxc4 {[%clk 0:00:37.7]}
19... Nxf3+ {[%clk 0:01:43.9]} 20. gxf3 {[%clk 0:00:38.6]} 20... Nd5 {[%clk
0:01:44.5]} 21. Kh1 {[%clk 0:00:33.2]} 21... Qf6 {[%clk 0:01:43.7]} 22. Qe4
{[%clk 0:00:27.9]} 22... Qxb2 {[%clk 0:01:41.6]} 23. Ra7 {[%clk 0:00:22.8]}
23... Qf6 {[%clk 0:01:36.8]} 24. Rg1 {[%clk 0:00:21.5]} 24... b3 {[%clk
0:01:34.2]} 25. Rb7 {[%clk 0:00:21]} 25... b2 {[%clk 0:01:33.6]} 26. Rb1 {[%clk
0:00:17]} 26... Nc3 {[%clk 0:01:33.2]} 27. Qb4 {[%clk 0:00:08.8]} 27... Qxf3+
{[%clk 0:01:32.1]} 28. Kg1 {[%clk 0:00:07.9]} 28... Nxb1 {[%clk 0:01:09.6]} 29.
Rb8 {[%clk 0:00:07.6]} 29... Qd1+ {[%clk 0:01:05.3]} 30. Kg2 {[%clk 0:00:07.4]}
30... Qd5+ {[%clk 0:01:05.4]} 31. Kg1 {[%clk 0:00:04.4]} 31... Rd8 {[%clk
0:01:05.1]} 32. Qb6 {[%clk 0:00:02.8]} 32... Qg5+ {[%clk 0:00:47.5]} 33. Kh1
{[%clk 0:00:03.2]} 33... Qc1+ {[%clk 0:00:47.2]} 34. Kg2 {[%clk 0:00:03.3]}
34... Qg5+ {[%clk 0:00:39.2]} 35. Kh1 {[%clk 0:00:03.3]} 35... Rf8 {[%clk
0:00:39.9]} 36. Qb4 {[%clk 0:00:02.6]} 36... Qc1+ {[%clk 0:00:18]} 37. Kg2
{[%clk 0:00:02.4]} 37... Qc6+ {[%clk 0:00:18.7]} 38. Kg1 {[%clk 0:00:02.2]}
38... Re8 {[%clk 0:00:19.4]} 0-1